{"text_format":"1","workbook":"xlsx","n_sheets":51,"sheets":["Инструкция","Лог обновления","Титульный","Территории","Дифференциация","Форма 4.4","Форма 1.0.1 | Форма 4.6","Форма 4.6","Сведения об изменении","Форма 1.0.2","Комментарии","Проверка","modProv","modReestr","AllSheetsInThisWorkbook","TEHSHEET","modCheckCyan","modInfo","et_union_hor","et_union_vert","modList00","modList01","modList02","modList03","modList04","modList05","modList07","modList09","modHTTP","modfrmRegion","MR_LIST","REESTR_VT","REESTR_VED","modfrmReestrObj","DataOrg","modfrmReestr","modUpdTemplMain","REESTR_ORG","modClassifierValidate","modHyp","modfrmDateChoose","modComm","modThisWorkbook","REESTR_MO","REESTR_MO_FILTER","modfrmReestrMR","modServiceModule","modfrmCheckUpdates","REESTR_DS","REESTR_CHS","REESTR_LINK"],"not_rendered":{"charts":0,"images":22,"macros":1,"external_links":0,"defined_names":168,"comments":3,"pivot_tables":0},"unopened":[],"bounds":{"document_bytes":16777216,"sheet_cells":100000,"rows_first":2000,"rows_last":500,"rows_between":2000,"halvings":0,"cell_chars":16384,"cell_head_chars":4096},"cells_cut":0,"cells_raw":0,"read":"whole","date_system":"1900"}

{"sheet":"Инструкция","index":0,"n_rows":83,"n_cols":27,"rows_kept":83,"cut":false,"hidden":false,"merged":[[82,5,82,23],[60,7,60,23],[78,4,78,23],[72,5,72,23],[73,5,73,23],[74,4,74,23],[75,4,75,23],[76,4,76,23],[77,4,77,23],[69,4,69,19],[39,4,39,23],[40,4,44,23],[45,4,56,23],[80,5,80,18],[58,4,58,6],[58,7,58,23],[59,4,59,6],[71,5,71,23],[57,4,57,20],[70,4,70,19],[34,4,38,23],[22,15,22,22],[21,5,21,12],[1,1,1,6],[2,1,2,2],[4,1,4,24],[6,4,18,23],[20,5,20,12],[20,15,20,23],[21,15,21,23]]}
[null,null,null,null,null,null,null,null,null,null,null,null,null,null,null,null,null,null,null,null,null,null,null,null,null,null," (требуется обновление)"]
[null,{"$f":"\"Код шаблона: \" & GetCode()","v":"Код шаблона: FAS.JKH.OPEN.INFO.QUARTER.WARM"}]
[null,{"$f":"\"Версия \" & GetVersion()","v":"Версия 1.1"}]
[]
[null,{"$f":"Титульный!E5","v":"Информация о наличии (отсутствии) технической возможности подключения к системе теплоснабжения, а также о регистрации и ходе реализации заявок о подключении к системе теплоснабжения "}]
[]
[null,null,null,null,"• На рабочем месте должен быть установлен MS Office 2007 SP3, 2010, 2013, 2016 с полной версией MS Excel\n\n• Макросы во время работы должны быть включены (!)\n\n• Для корректной работы отчёта требуется выбрать низкий уровень безопасности\n(В меню MS Excel 2007/2010/2013/2016: Параметры Excel | Центр управления безопасностью | Параметры центра управления безопасностью | Параметры макросов | Включить все макросы | ОК)\n\n• Если Вы работаете в табличном процессоре MS Excel 2007 и выше, то можете использовать для работы формат XLSB (Двоичная книга Excel). При работе в формате XLSB заметно быстрее происходит сохранение файла, а также уменьшается размер по сравнению с форматами XLS и XLSM\n\n• Не рекомендуется снимать защиту с листов и каким-либо образом модифицировать защищаемые формулы и расчётные поля, в противном случае, отчёт будет отклонён системой\n\n• При сохранении не следует выбирать формат XLSX (Книга Excel), так как в указанном формате макросы, необходимые для работы отчёта, безвозвратно удаляются"]
[]
[]
[]
[]
[]
[]
[]
[]
[]
[]
[]
[]
[]
[null,null,null,null,"A"," - не обязательные для заполнения",null,null,null,null,null,null,null,null,"A"," - с формулами и константами"]
[null,null,null,null,"A"," - обязательные для заполнения",null,null,null,null,null,null,null,null,"A"," - с выбором значений до двойному клику"]
[]
[]
[]
[]
[]
[]
[]
[]
[]
[]
[]
[]
[null,null,null,null,"Если в предложенном Вам списке необходимая организация, МР/МО отсутствуют, обновите реестры с помощью кнопок\n\nВ результате синхронизации с базой данных список организаций (МР/МО) будет заменён актуальным (механизм синхронизации требует подключения к сети Интернет и основан на использовании протокола HTTPS (TCP порт 443))\n\nЕсли после обновления Вам не удалось найти необходимую организацию в списке, обратитесь к ответственному за поддержание реестра Вашего региона."]
[]
[]
[]
[]
[]
[]
[]
[]
[]
[]
[null,null,null,null,"• При сохранении шаблона осуществляется проверка корректности данных, в том числе на наличие значений в ячейках, обязательных для заполнения\n\n• Если какая-то ячейка не удовлетворяет условию проверки, на лист «Проверка» добавляется гиперссылка на данную ячейку и указывается причина ошибки\n\n• В колонке «Статус» для каждого сообщения возможны 2 значения: ошибка и предупреждение\n\n• При наличии сообщений со статусом «Ошибка» шаблон будет отклонён системой и не будет загружен в хранилище данных, сообщения со статусом «Предупреждение» носят информационный характер, и такой шаблон будет принят системой"]
[]
[]
[]
[]
[]
[]
[]
[]
[]
[]
[]
[null,null,null,null,"Обратиться за помощью в службу технической поддержки"]
[]
[]
[]
[]
[]
[]
[]
[]
[]
[]
[]
[null,null,null,null,"Инструкция по загрузке сопроводительных материалов"]
[null,null,null,null,"Инструкция по работе с отчетной формой"]
[]
[]
[]
[]
[]
[]
[]
[null,null,null,null,"При наличии подключения к Интернет, можно автоматически проверять наличие доступных обновлений. Выберите способ оповещения о наличии обновлений для отчёта:"]
[]
[null,null,null,null,null,"проверять доступные обновления (рекомендуется)",null,null,null,null,null,null,null,null,null,null,null,null,null,null,null,null,null,null,null,null,"y"]
[]
[null,null,null,null,null,"никогда не проверять наличие обновлений (не рекомендуется)"]

{"sheet":"Лог обновления","index":1,"n_rows":2,"n_cols":3,"rows_kept":2,"cut":false,"hidden":true,"merged":[]}
["Дата/Время","Сообщение","Статус"]
["2021-04-13T09:21:00","Проверка доступных обновлений...","Информация"]

{"sheet":"Титульный","index":2,"n_rows":45,"n_cols":6,"rows_kept":45,"cut":false,"hidden":true,"merged":[[4,4,4,5],[44,4,44,5]]}
[]
[]
[]
[null,null,null,null,null,{"$f":"version","v":"Версия 1.1"}]
[null,null,null,null,"Информация о наличии (отсутствии) технической возможности подключения к системе теплоснабжения, а также о регистрации и ходе реализации заявок о подключении к системе теплоснабжения "]
[]
[null,null,null,null,"Субъект РФ"]
[]
[null,null,null,null,"Публикация2","На сайте регулирующего органа"]
[]
[null,null,null,null,"Отсутствует Интернет в границах территории МО, где организация осуществляет регулируемые виды деятельности"]
[]
[null,null,null,null,"Тип отчета"]
[null,null,null,null,"Дата внесения изменений в информацию, подлежащую раскрытию","28.09.2018"]
[]
[null,null,null,null,"Применяется дифференциация тарифа по централизованным системам теплоснабжения?"]
[null,null,null,null,"Информация по скольким централизованным системам теплоснабжения будет заполнена в шаблоне?"]
[]
[null,null,null,null,null,"Отчетный период"]
[null,null,null,null,"Год"]
[null,null,null,null,"Квартал"]
[]
[null,null,null,null,"Является ли данное юридическое лицо подразделением (филиалом) другой организации","нет"]
[]
[]
[null,null,null,null,"Наименование организации"]
[null,null,null,null,"Наименование филиала"]
[null,null,null,null,"ИНН"]
[null,null,null,null,"КПП"]
[null,null,null,null,"Вид деятельности"]
[]
[null,null,null,null,"Тип теплоснабжающей организации"]
[]
[null,null,null,null,"Почтовый адрес регулируемой организации"]
[null,null,null,null,"Фамилия, имя, отчество руководителя"]
[]
[null,null,null,null,null,"Ответственный за составление формы"]
[null,null,null,null,"Фамилия, имя, отчество"]
[null,null,null,null,"Должность"]
[null,null,null,null,"(код) номер телефона"]
[null,null,null,null,"e-mail"]
[]
[]
[]
[null,null,null,null,"В соответствии с пунктом 33.12 Постановления Правительства РФ от 5 июля 2013 г. № 570 \"О стандартах раскрытия информации теплоснабжающими организациями, теплосетевыми организациями и органами регулирования\" теплоснабжающей организацией и теплосетевой организацией в ценовых зонах теплоснабжения информация категории \"о наличии (об отсутствии) технической возможности подключения (технологического присоединения) к системе теплоснабжения, а также о регистрации и ходе реализации заявок на подключение (технологическое присоединение) к системе теплоснабжения\" раскрытию не подлежит"]

{"sheet":"Территории","index":3,"n_rows":12,"n_cols":18,"rows_kept":12,"cut":false,"hidden":true,"merged":[[8,5,8,6],[8,8,8,9],[9,5,9,6],[9,8,9,9],[3,3,3,7],[5,3,5,4],[5,5,5,6],[7,3,7,4],[7,5,7,7],[7,8,7,11]]}
[null,null,null,null,null,null,null,null,null,null,"МО","ОКТМО","МР"]
[]
[]
[null,null,null,"Перечень муниципальных районов и муниципальных образований (территорий действия тарифа)"]
[]
[null,null,null,null,null,"да"]
[]
[null,null,null,"Территория действия тарифа",null,"Муниципальный район",null,null,"Муниципальное образование"]
[null,null,null,"№ п/п","Наименование","№ п/п",null,"Наименование","№ п/п",null,"Наименование","ОКТМО"]
[null,null,null,"1","2","3",null,"4","5",null,"6","7"]
[null,null,null,0,null,null,null,null,null,null,null,null,"размерженный МР",null,null,"флаг используемости территории на листе Перечень тарифов","копия территорий","МР (ОКТМО)"]
[null,"man",null,null,"Добавить территорию действия тарифа",null,null,null,"",null,null,null,null,null,null,null,"Добавить территорию действия тарифа"]

{"sheet":"Дифференциация","index":4,"n_rows":30,"n_cols":26,"rows_kept":30,"cut":false,"hidden":true,"merged":[[17,0,18,0],[17,3,17,4],[3,3,3,8],[4,3,4,8],[7,4,7,5],[8,1,8,3],[5,0,6,5],[7,1,7,3],[8,4,8,5],[9,1,9,3],[9,4,9,5],[13,1,13,3],[10,4,10,5],[10,1,10,3],[24,2,25,2],[11,1,11,3],[12,1,12,3],[21,4,23,4],[21,5,23,5],[21,3,23,3],[17,5,17,8],[21,6,22,6],[21,7,22,7],[21,8,22,8],[21,9,22,9],[17,9,17,12],[19,6,19,7],[19,10,19,11],[18,10,18,11],[18,6,18,7]]}
[]
[]
[]
[null,null,null,{"$f":"Титульный!E5","v":"Информация о наличии (отсутствии) технической возможности подключения к системе теплоснабжения, а также о регистрации и ходе реализации заявок о подключении к системе теплоснабжения "}]
[null,null,null,{"$f":"IF(org=0,\"Не определено\",org)","v":"Не определено"}]
[]
[]
[]
[]
[]
[]
[]
[]
[]
[]
[]
[]
[null,null,null,"Вид деятельности",null,"Дифференциация по территориям оказания услуг",null,null,null,"Дифференциация по централизованным системам коммунальной инфраструктуры"]
[null,null,null,"№ п/п","Наименование","да/нет","№ п/п",null,"Наименование","да/нет","№ п/п",null,"Наименование"]
[null,null,null,"1","2","3","4",null,"5","6","7",null,"8"]
[]
[null,null,null,"1",null,"нет",null,1,null,"нет",null,"1","",null,null,null,null,null,null,null,null,null,null,64279412,"a",1705000]
[null,null,null,null,null,null,null,null,null,null,null,null,"Добавить централизованную систему коммунальной инфраструктуры"]
[null,null,null,null,null,null,null,null,"Добавить описание территории оказания услуг"]
[null,null,null,null,"Добавить вид деятельности",null,null,null,null,null,""]
[null,null,null,null,null,null,null,null,null,null,""]
[]
[]
[]
[null,null,null,null,null,null,null,null," "]

{"sheet":"Форма 4.4","index":5,"n_rows":19,"n_cols":9,"rows_kept":19,"cut":false,"hidden":true,"merged":[[7,8,8,8],[7,6,7,7],[4,3,4,6],[5,3,5,6],[7,3,8,3],[7,4,8,4],[7,5,8,5]]}
[null,null,null,null,null,null,4]
[]
[]
[]
[null,null,null,"Информация об основных потребительских характеристиках регулируемых товаров и услуг регулируемой организации и их соответствии установленным требованиям"]
[null,null,null,{"$f":"IF(org=0,\"Не определено\",org)","v":"Не определено"}]
[]
[null,null,null,"№ п/п","Наименование параметра","Единица измерения",null,null,"Описание параметров формы"]
[null,null,null,null,null,null,"Информация","Ссылка на документ"]
[null,null,null,"1","2","3",{"$f":"G1&\".1\"","v":"4.1"}]
[null,null,null,1,"Количество аварий на тепловых сетях","ед. на км",null,null,"Указывается количество любых нарушений на тепловых сетях в расчете на один километр трубопровода."]
[null,null,null,2,"Количество аварий на источниках тепловой энергии","ед. на источник",null,null,"Указывается количество любых нарушений на источниках тепловой энергии"]
[null,null,null,3,"Показатели надежности и качества, установленные в соответствии с законодательством Российской Федерации","x",null,null,"В колонке «Ссылка на документ» указывается материал в виде ссылки на документ, содержащий информацию об установленных показателях надежности и качества, предварительно загруженный в хранилище данных ФГИС ЕИАС.\nВ случае, если показатели надежности и качества не утверждены в колонке «Информация» указывается «Не утверждены».\nИнформация в данной строке не указывается теплоснабжающими организациями, теплосетевыми организациями в ценовых зонах теплоснабжения."]
[null,null,null,4,"Сведения о несоблюдении значений параметров качества теплоснабжения и (или) параметров, отражающих допустимые перерывы в теплоснабжении","x","x","x","Информация в строках 4.1 – 4.3 указывается в случае, если организация имеет статус единой теплоснабжающей организации."]
[null,null,null,"4.1","количество составленных актов, подтверждающих факт превышения разрешенных отклонений значений параметров","шт."]
[null,null,null,"4.2","средняя продолжительность устранения превышения разрешенных отклонений значений параметров","дн."]
[null,null,null,"4.3","совокупная величина снижения размера платы за тепловую энергию (мощность) потребителям в связи с превышением разрешенных отклонений значений параметров","руб."]
[null,null,null,5,"Доля числа исполненных в срок договоров о подключении","%",null,null,"Указывается процент общего количества заключенных договоров о подключении (технологическом присоединении).\nИнформация в данной строке не указывается теплоснабжающими организациями, теплосетевыми организациями в ценовых зонах теплоснабжения."]
[null,null,null,6,"Средняя продолжительность рассмотрения заявлений о подключении","Гкал/час",null,null,"Информация в данной строке не указывается теплоснабжающими организациями, теплосетевыми организациями в ценовых зонах теплоснабжения."]

{"sheet":"Форма 1.0.1 | Форма 4.6","index":6,"n_rows":8,"n_cols":7,"rows_kept":8,"cut":false,"hidden":true,"merged":[[7,4,7,5],[4,3,4,6],[5,3,5,6]]}
[null,null,null,null,null,null,4]
[]
[]
[]
[null,null,null,"Форма 1.0.1 Основные параметры раскрываемой информации 1"]
[null,null,null,{"$f":"IF(org=0,\"Не определено\",org)","v":"Не определено"}]
[]
[null,null,null,null,"  1 Информация по данной форме публикуется при раскрытии информации по каждой из форм."]

{"sheet":"Форма 4.6","index":7,"n_rows":18,"n_cols":8,"rows_kept":18,"cut":false,"hidden":true,"merged":[[7,7,8,7],[4,3,4,6],[5,3,5,6],[7,3,8,3],[7,4,8,4],[7,5,8,5]]}
[null,null,null,null,null,null,4]
[null,null,null,null,null,"Гкал/час",null,"Указывается резерв мощности для системы теплоснабжения, тариф для которой не является отличным от тарифов других систем теплоснабжения регулируемой организации.\nПри использовании регулируемой организацией нескольких систем теплоснабжения информация о резерве мощности таких систем указывается в отношении каждой системы теплоснабжения в отдельных строках."]
[]
[]
[null,null,null,{"$f":"Титульный!E5","v":"Информация о наличии (отсутствии) технической возможности подключения к системе теплоснабжения, а также о регистрации и ходе реализации заявок о подключении к системе теплоснабжения "}]
[null,null,null,{"$f":"IF(org=0,\"Не определено\",org)","v":"Не определено"}]
[]
[null,null,null,"№ п/п","Наименование параметра","Единица измерения",null,"Описание параметров формы"]
[null,null,null,null,null,null,"Информация"]
[null,null,null,"1","2","3",{"$f":"G1&\".1\"","v":"4.1"}]
[null,null,null,1,"Количество поданных заявок","ед",null,"Указывается количество поданных заявок на подключение (технологическое присоединение) к системе теплоснабжения в течение отчетного квартала."]
[null,null,null,2,"Количество исполненных заявок","ед",null,"Указывается количество исполненных заявок на подключение (технологическое присоединение) к системе теплоснабжения в течение отчетного квартала."]
[null,null,null,3,"Количество заявок с решением об отказе в подключении","ед",null,"Указывается количество заявок с решением об отказе о подключении (технологическому присоединению) к системе теплоснабжения в течение отчетного квартала."]
[null,null,null,4,"Причины отказа в подключении","x",null,"Указывается текстовое описание причин принятия решений об отказе в подключении (технологическом присоединении) к системе теплоснабжения.\nНе заполняется в случае, если решения об отказе в подключении (технологическом присоединении) в течение отчетного периода не принимались."]
[null,null,null,5,"Резерв мощности системы теплоснабжения в течение квартала, в том числе:","Гкал/час",{"$f":"SUM(G16:G18)","v":0},"Указывается резерв мощности системы теплоснабжения (совокупности систем теплоснабжения в случае, если для них установлены одинаковые тарифы в сфере теплоснабжения.\nВ случае если регулируемыми организациями оказываются услуги по теплоснабжению по нескольким технологически не связанным между собой системам теплоснабжения, и если в отношении указанных систем устанавливаются различные тарифы в сфере теплоснабжения, то информация раскрывается отдельно по каждой системе теплоснабжения."]
[null,null,null,"5.0"]
[null,null,null,"5.1",null,"Гкал/час",null,"Указывается резерв мощности для системы теплоснабжения, тариф для которой не является отличным от тарифов других систем теплоснабжения регулируемой организации.\nПри использовании регулируемой организацией нескольких систем теплоснабжения информация о резерве мощности таких систем указывается в отношении каждой системы теплоснабжения в отдельных строках."]
[null,null,null,null,"Добавить централизованную систему теплоснабжения"]

{"sheet":"Сведения об изменении","index":8,"n_rows":14,"n_cols":5,"rows_kept":14,"cut":false,"hidden":true,"merged":[[6,3,6,4],[7,3,7,4]]}
[]
[]
[]
[]
[]
[]
[null,null,null,"Сведения об изменениях в первоначально опубликованной информации"]
[null,null,null,{"$f":"IF(org=0,\"Не определено\",org)","v":"Не определено"}]
[]
[null,null,null,"№ п/п","Сведения"]
[null,null,null,"1","2"]
[null,null,null,0]
[null,null,null,1]
[null,null,null,null,"Добавить строку"]

{"sheet":"Форма 1.0.2","index":9,"n_rows":15,"n_cols":13,"rows_kept":15,"cut":false,"hidden":true,"merged":[[11,10,12,10],[14,4,14,9],[4,3,4,9],[7,3,7,9],[7,10,9,10],[8,3,9,3],[8,4,8,5],[8,6,8,9]]}
[]
[]
[]
[]
[null,null,null,"Форма 1.0.2 Информация о публикации в печатных изданиях 2"]
[]
[]
[null,null,null,"Параметры формы",null,null,null,null,null,null,"Описание параметров формы"]
[null,null,null,"№ п/п","Форма публикации",null,"Официальное печатное издание"]
[null,null,null,null,"Номер","Наименование","Наименование","Номер","Дата выпуска","Ссылка на документ"]
[null,null,null,"1","2","3","4","5","6","7","8"]
["3","",null,"1",null,null,null,null,null,null,"В колонке «Дата выпуска» дата выпуска печатного издания указывается в виде «ДД.ММ.ГГГГ».\nВ колонке «Ссылка на документ» указывается ссылка на отсканированную копию печатного издания, предварительно загруженную в хранилище федеральной государственной информационной системы «Единая информационно-аналитическая система «Федеральный орган регулирования - региональные органы регулирования - субъекты регулирования» (далее – ФГИС ЕИАС), с опубликованной информацией.\nВ случае публикации информации в нескольких печатных изданиях информация по каждому из них указывается в отдельной строке.",null,{"$f":"IF(ISERROR(INDEX(kind_of_nameforms,MATCH(E12,kind_of_forms,0),1)),\"\",INDEX(kind_of_nameforms,MATCH(E12,kind_of_forms,0),1))","v":""}]
[null,null,null,null,"Добавить строку"]
[]
[null,null,null,null,"2 В данной форме публикуется информация по каждой из форм раскрытия, данные в которой относятся к муниципальному образованию, в котором отсутствует доступ в информационно-телекоммуникационную сеть «Интернет» (далее – сеть «Интернет»)."]

{"sheet":"Комментарии","index":10,"n_rows":13,"n_cols":5,"rows_kept":13,"cut":false,"hidden":true,"merged":[[6,3,6,4],[7,3,7,4]]}
[]
[]
[]
[]
[]
[]
[null,null,null,"Комментарии"]
[null,null,null,{"$f":"IF(org=0,\"Не определено\",org)","v":"Не определено"}]
[]
[null,null,null,"№ п/п","Комментарий"]
[null,null,null,"1","2"]
[null,null,null,0]
[null,null,null,null,"Добавить"]

{"sheet":"Проверка","index":11,"n_rows":4,"n_cols":5,"rows_kept":4,"cut":false,"hidden":true,"merged":[[1,1,1,4]]}
[]
[null,"Результат проверки"]
[]
[null,"Ссылка1","Ссылка2","Причина","Статус"]

{"sheet":"modProv","index":12,"n_rows":0,"n_cols":0,"rows_kept":0,"cut":false,"hidden":true,"merged":[]}

{"sheet":"modReestr","index":13,"n_rows":0,"n_cols":0,"rows_kept":0,"cut":false,"hidden":true,"merged":[]}

{"sheet":"AllSheetsInThisWorkbook","index":14,"n_rows":40,"n_cols":2,"rows_kept":40,"cut":false,"hidden":true,"merged":[]}
["Расчетные листы","Скрытые листы"]
["Инструкция","modProv"]
["Лог обновления","modReestr"]
["Титульный","AllSheetsInThisWorkbook"]
["Территории","TEHSHEET"]
["Дифференциация","modCheckCyan"]
["Форма 4.4","modInfo"]
["Форма 1.0.1 | Форма 4.6","et_union_hor"]
["Форма 4.6","et_union_vert"]
["Сведения об изменении","modList00"]
["Форма 1.0.2","modList01"]
["Комментарии","modList02"]
["Проверка","modList03"]
[null,"modList04"]
[null,"modList05"]
[null,"modList07"]
[null,"modList09"]
[null,"modHTTP"]
[null,"modfrmRegion"]
[null,"MR_LIST"]
[null,"REESTR_VT"]
[null,"REESTR_VED"]
[null,"modfrmReestrObj"]
[null,"DataOrg"]
[null,"modfrmReestr"]
[null,"modUpdTemplMain"]
[null,"REESTR_ORG"]
[null,"modClassifierValidate"]
[null,"modHyp"]
[null,"modfrmDateChoose"]
[null,"modComm"]
[null,"modThisWorkbook"]
[null,"REESTR_MO"]
[null,"REESTR_MO_FILTER"]
[null,"modfrmReestrMR"]
[null,"modServiceModule"]
[null,"modfrmCheckUpdates"]
[null,"REESTR_DS"]
[null,"REESTR_CHS"]
[null,"REESTR_LINK"]

{"sheet":"TEHSHEET","index":15,"n_rows":87,"n_cols":20,"rows_kept":87,"cut":false,"hidden":true,"merged":[[0,18,0,19]]}
["REGION",null,"year_list","logical","Месяц\n(MONTH)","Квартал\n(QUARTER)","Месяц\n(kind_of_publication)","Единица измерения объема оказываемых услуг ГВС\n/kind_of_unit_GVS/","Вид тарифа\n/list_of_tariff/","mr_id","версия шаблона\n (DocProp_Version)","0.1","Тип отчета\ndata_type","type_org_list",null,null,null,null,"Перечень форм\n(kind_of_forms)"]
["Алтайский край",null,2015,"да","январь","I квартал","На официальном сайте организации","тыс.куб.м/сутки",null,52,"код шаблона\n(DocProp_TemplateCode)","FAS.JKH.OPEN.INFO.QUARTER.HVS","первичное раскрытие информации","Регулируемая организация",null,null,null,null,"Форма 1.0.1","Основные параметры раскрываемой информации"]
["Амурская область",null,2016,"нет","февраль","II квартал","На сайте регулирующего органа","Гкал/час","Без дифференциации","sys_id","сфера\n(TSphere)","ХВС","изменения в раскрытой ранее информации","Единая теплоснабжающая организация",null,null,null,null,"Форма 4.6",{"$f":"Титульный!E5","v":"Информация о наличии (отсутствии) технической возможности подключения к системе теплоснабжения, а также о регистрации и ходе реализации заявок о подключении к системе теплоснабжения "}]
["Архангельская область",null,2017,null,"март","III квартал",null,"куб.м/час",null,104,"сфера(латиница)\n(TSphere_trans)","VS",null,"Теплоснабжающая организация в ценовой зоне теплоснабжения"]
["Астраханская область",null,2018,null,"апрель","IV квартал",null,null,null,null,"сфера расширено\n(TSphere_full)",null,null,"Теплосетевая организация в ценовой зоне теплоснабжения"]
["Белгородская область",null,2019,null,"май"]
["Брянская область",null,2020,null,"июнь"]
["Владимирская область",null,2021,null,"июль",null,null,null,null,null,"true"]
["Волгоградская область",null,2022,null,"август"]
["Вологодская область",null,null,null,"сентябрь"]
["Воронежская область",null,null,null,"октябрь"]
["г.Байконур",null,null,null,"ноябрь"]
["г. Москва",null,null,null,"декабрь"]
["г.Санкт-Петербург"]
["г.Севастополь"]
["Еврейская автономная область",null,null,null,null,null,"Текущая дата"]
["Забайкальский край",null,"Организация",{"$f":"IF(f_year = \"\",\"\", IF(LEN(f_quart)=0,\"\",IF(f_quart=\"I квартал\", \"01.01.\"&f_year,IF(f_quart=\"II квартал\",\"01.04.\"&f_year,(IF(f_quart=\"III квартал\", \"01.07.\"&f_year,\"01.10.\"&f_year)))) ))","v":""},{"$f":"IF(f_year = \"\",\"\", IF(LEN(f_quart)=0,\"\",IF(f_quart=\"I квартал\", \"31.03.\"& f_year,IF(f_quart=\"II квартал\",\"30.06.\"& f_year,(IF(f_quart=\"III квартал\", \"30.09.\"& f_year,\"31.12.\"& f_year)))) ))","v":""},null,"09.01.2019 17:29:40"]
["Ивановская область"]
["Иркутская область",null,null,null,null,null,"Признак изменения данных на листе Доступ к товарам и услугам"]
["Кабардино-Балкарская республика",null,"Виды деятельности",null,null,null,true]
["Калининградская область"]
["Калужская область"]
["Камчатский край"]
["Карачаево-Черкесская республика"]
["Кемеровская область"]
["Кировская область"]
["Костромская область"]
["Краснодарский край"]
["Красноярский край"]
["Курганская область"]
["Курская область"]
["Ленинградская область"]
["Липецкая область"]
["Магаданская область"]
["Московская область"]
["Мурманская область"]
["Ненецкий автономный округ"]
["Нижегородская область"]
["Новгородская область"]
["Новосибирская область"]
["Омская область"]
["Оренбургская область"]
["Орловская область"]
["Пензенская область"]
["Пермский край"]
["Приморский край"]
["Псковская область"]
["Республика Адыгея"]
["Республика Алтай"]
["Республика Башкортостан"]
["Республика Бурятия"]
["Республика Дагестан"]
["Республика Ингушетия"]
["Республика Калмыкия"]
["Республика Карелия"]
["Республика Коми"]
["Республика Крым"]
["Республика Марий Эл"]
["Республика Мордовия"]
["Республика Саха (Якутия)"]
["Республика Северная Осетия-Алания"]
["Республика Татарстан"]
["Республика Тыва"]
["Республика Хакасия"]
["Ростовская область"]
["Рязанская область"]
["Самарская область"]
["Саратовская область"]
["Сахалинская область"]
["Свердловская область"]
["Смоленская область"]
["Ставропольский край"]
["Тамбовская область"]
["Тверская область"]
["Томская область"]
["Тульская область"]
["Тюменская область"]
["Удмуртская республика"]
["Ульяновская область"]
["Хабаровский край"]
["Ханты-Мансийский автономный округ"]
["Челябинская область"]
["Чеченская республика"]
["Чувашская республика"]
["Чукотский автономный округ"]
["Ямало-Ненецкий автономный округ"]
["Ярославская область"]

{"sheet":"modCheckCyan","index":16,"n_rows":3,"n_cols":1,"rows_kept":3,"cut":false,"hidden":true,"merged":[]}
[]
[{"$f":"IF('Сведения об изменении'!$E$13=\"\",1,0)","v":1}]
[{"$f":"IF(Дифференциация!$E$22=\"\",1,0)","v":1}]

{"sheet":"modInfo","index":17,"n_rows":11,"n_cols":2,"rows_kept":11,"cut":false,"hidden":true,"merged":[[4,3,4,10],[0,3,0,10],[1,3,1,10],[2,3,2,10],[3,3,3,10]]}
[null,"Территории"]
[1,"Наименование территории оказания услуг для целей идентификации"]
[2,"Муниципальные районы и муниципальные образования, на территории которых осуществляется оказание услуг"]
[null,"Дифференциация"]
[1,"В случае, если регулируемая организация осуществляет несколько видов деятельности, информация о которых подлежит раскрытию, информация по каждому виду деятельности раскрывается отдельно."]
[2,"Поле заполняется выбором значений из списка. Если значений для выбора нет - убедитесь, что лист \"Территории\" заполнен."]
[3,"Условное наименование централизованной системы коммунальной инфраструктуры для целей идентификации."]
[4,"В случае, если регулируемыми организациями оказываются услуги по нескольким технологически не связанным между собой  централизованным системам коммунальной инфраструктуры и если в отношении указанных централизованных систем устанавливаются различные тарифы, то информация раскрывается отдельно по каждой централизованной системе коммунальной инфраструктуры."]
[null,"Сведения об изменении"]
[1,"Лист заполняется в случае, если на Титульном листе в поле \"Тип отчета\" выбрано значение «Изменения в раскрытой ранее информации»."]
[null,"Нет доступных обновлений, версия отчёта актуальна"]

{"sheet":"et_union_hor","index":18,"n_rows":60,"n_cols":26,"rows_kept":60,"cut":false,"hidden":true,"merged":[[19,7,20,7],[28,3,30,3],[28,4,30,4],[28,5,30,5],[28,6,29,6],[28,7,29,7],[34,7,35,7],[34,8,35,8],[34,9,35,9],[28,8,29,8],[28,9,29,9],[50,3,50,5],[50,6,51,6],[14,2,15,2],[14,3,15,3],[14,4,15,4],[19,2,20,2],[19,5,20,5],[34,6,35,6],[19,6,20,6],[49,3,49,6]]}
[]
[]
["et_Comm"]
[]
[]
[]
["et_List04"]
[]
[]
[]
[]
[]
["et_List09_0"]
[]
[null,"auto",null,1,null,null,0,null,null,"0",null,null,{"$f":"mergeValue(H15)","v":0},null,null,{"$f":"IF(ISERROR(MATCH(MID(Q15,1,250),MID(note_ter,1,250),0)),\"n\",\"y\")","v":"y"},null,{"$f":"K15&\"(\"&L15&\")\"","v":"()"}]
[null,null,null,null,null,null,null,"Добавить МР"]
[]
["et_List09_1"]
[]
[null,"auto",null,null,null,null,0,null,null,"0",null,null,{"$f":"mergeValue(H20)","v":0},null,null,null,null,{"$f":"K20&\"(\"&L20&\")\"","v":"()"}]
[null,null,null,null,null,null,null,null,null,null,"Добавить МО"]
[]
["et_List09_2"]
[]
[null,"auto",null,null,null,null,null,null,null,0,null,null,{"$f":"mergeValue(H25)","v":0},null,null,null,null,{"$f":"K25&\" (\"&L25&\")\"","v":" ()"}]
[]
["et_List07_1"]
[]
[null,null,null,"1",null,"нет",null,1,null,"нет",null,"1",null,null,null,null,null,null,null,null,null,null,null,null,"a",1705000]
[null,null,null,null,null,null,null,null,null,null,null,null,"Добавить централизованную систему коммунальной инфраструктуры"]
[null,null,null,null,null,null,null,null,"Добавить описание территории оказания услуг"]
[]
["et_List07_4"]
[]
[null,null,null,null,null,null,null,1,null,"нет",null,"1",null,null,null,null,null,null,null,null,null,null,null,null,"a",1705000]
[null,null,null,null,null,null,null,null,null,null,null,null,"Добавить централизованную систему коммунальной инфраструктуры"]
[]
["et_List07_5"]
[]
[null,null,null,null,null,null,null,null,null,null,null,"1",null,null,null,null,null,null,null,null,null,null,null,null,"a",1705000]
[]
[]
["et_List03"]
[]
["3","",null,null,null,null,null,null,null,null,null,null,{"$f":"IF(ISERROR(INDEX(kind_of_nameforms,MATCH(E45,kind_of_forms,0),1)),\"\",INDEX(kind_of_nameforms,MATCH(E45,kind_of_forms,0),1))","v":""}]
[]
["et_List02_st","et_List02_ter","et_List02_mr","et_List02_mo"]
[]
[]
[null,null,null,"Форма 1.0.1"]
[null,null,null,"Параметры формы",null,null,"Описание параметров формы"]
[null,null,null,"№ п/п","Наименование параметра","Информация"]
[null,null,null,"1",2,3,4]
[null,null,null,1,"Дата заполнения/внесения изменений",{"$f":"IF(form_up_date=\"\",\"\",form_up_date)","v":"28.09.2018"},"Указывается календарная дата первичного заполнения или внесения изменений в форму в виде «ДД.ММ.ГГГГ»."]
[null,null,null,"2.1","Наименование централизованной системы коммунальной инфраструктуры",null,"Указывается наименование централизованной системы холодного водоснабжения/горячего водоснабжения/водоотведения/теплоснабжения, к которой относится размещаемая информация.\nВ случае наличия нескольких централизованных систем коммунальной инфраструктуры, информация по каждой из них указывается в отдельной строке. "]
[null,null,null,"3.1","Наименование регулируемого вида деятельности",null,"Указывается наименование вида регулируемой деятельности."]
[null,null,null,"4.1","Территория оказания услуги по регулируемому виду деятельности","x"]
[null,null,null,{"$f":"D57&\".1\"","v":"4.1.1"},"Субъект РФ",{"$f":"IF(region_name=\"\",\"\",region_name)","v":""},"Указывается наименование субъекта Российской Федерации"]
[null,null,null,"4.1.1.1","муниципальный район",null,"Указывается наименование муниципального района, на территории которого организация оказывает услуги по регулируемому виду деятельности."]
[null,null,null,"4.1.1.1.1","муниципальное образование",null,"Указывается наименование и код муниципального района, муниципального образования в соответствии с Общероссийским классификатором территорий муниципальных образований (далее - ОКТМО), входящего в муниципальный район, на территории которого организация оказывает услуги по регулируемому виду деятельности.\nВ случае оказания услуг по регулируемому виду деятельности на территории нескольких муниципальных районов (муниципальных образований) данные по каждому их них указываются в отдельной строке."]

{"sheet":"et_union_vert","index":19,"n_rows":0,"n_cols":0,"rows_kept":0,"cut":false,"hidden":true,"merged":[]}

{"sheet":"modList00","index":20,"n_rows":0,"n_cols":0,"rows_kept":0,"cut":false,"hidden":true,"merged":[]}

{"sheet":"modList01","index":21,"n_rows":0,"n_cols":0,"rows_kept":0,"cut":false,"hidden":true,"merged":[]}

{"sheet":"modList02","index":22,"n_rows":0,"n_cols":0,"rows_kept":0,"cut":false,"hidden":true,"merged":[]}

{"sheet":"modList03","index":23,"n_rows":0,"n_cols":0,"rows_kept":0,"cut":false,"hidden":true,"merged":[]}

{"sheet":"modList04","index":24,"n_rows":0,"n_cols":0,"rows_kept":0,"cut":false,"hidden":true,"merged":[]}

{"sheet":"modList05","index":25,"n_rows":0,"n_cols":0,"rows_kept":0,"cut":false,"hidden":true,"merged":[]}

{"sheet":"modList07","index":26,"n_rows":0,"n_cols":0,"rows_kept":0,"cut":false,"hidden":true,"merged":[[5,0,6,1],[17,0,18,0]]}

{"sheet":"modList09","index":27,"n_rows":0,"n_cols":0,"rows_kept":0,"cut":false,"hidden":true,"merged":[]}

{"sheet":"modHTTP","index":28,"n_rows":0,"n_cols":0,"rows_kept":0,"cut":false,"hidden":true,"merged":[]}

{"sheet":"modfrmRegion","index":29,"n_rows":0,"n_cols":0,"rows_kept":0,"cut":false,"hidden":true,"merged":[]}

{"sheet":"MR_LIST","index":30,"n_rows":0,"n_cols":0,"rows_kept":0,"cut":false,"hidden":true,"merged":[]}

{"sheet":"REESTR_VT","index":31,"n_rows":0,"n_cols":0,"rows_kept":0,"cut":false,"hidden":true,"merged":[]}

{"sheet":"REESTR_VED","index":32,"n_rows":3,"n_cols":2,"rows_kept":3,"cut":false,"hidden":true,"merged":[]}
["ID_TARIFF_NAME","VED_NAME"]
[64279412,"Оказание услуг по передаче тепловой энергии, теплоносителя(Волгоград)"]
[64279413,"Оказание услуг по поддержанию резервной тепловой мощности(Волгоград)"]

{"sheet":"modfrmReestrObj","index":33,"n_rows":0,"n_cols":0,"rows_kept":0,"cut":false,"hidden":true,"merged":[]}

{"sheet":"DataOrg","index":34,"n_rows":0,"n_cols":0,"rows_kept":0,"cut":false,"hidden":true,"merged":[]}

{"sheet":"modfrmReestr","index":35,"n_rows":0,"n_cols":0,"rows_kept":0,"cut":false,"hidden":true,"merged":[]}

{"sheet":"modUpdTemplMain","index":36,"n_rows":0,"n_cols":0,"rows_kept":0,"cut":false,"hidden":true,"merged":[]}

{"sheet":"REESTR_ORG","index":37,"n_rows":0,"n_cols":0,"rows_kept":0,"cut":false,"hidden":true,"merged":[]}

{"sheet":"modClassifierValidate","index":38,"n_rows":0,"n_cols":0,"rows_kept":0,"cut":false,"hidden":true,"merged":[]}

{"sheet":"modHyp","index":39,"n_rows":0,"n_cols":0,"rows_kept":0,"cut":false,"hidden":true,"merged":[]}

{"sheet":"modfrmDateChoose","index":40,"n_rows":0,"n_cols":0,"rows_kept":0,"cut":false,"hidden":true,"merged":[]}

{"sheet":"modComm","index":41,"n_rows":0,"n_cols":0,"rows_kept":0,"cut":false,"hidden":true,"merged":[]}

{"sheet":"modThisWorkbook","index":42,"n_rows":0,"n_cols":0,"rows_kept":0,"cut":false,"hidden":true,"merged":[]}

{"sheet":"REESTR_MO","index":43,"n_rows":0,"n_cols":0,"rows_kept":0,"cut":false,"hidden":true,"merged":[]}

{"sheet":"REESTR_MO_FILTER","index":44,"n_rows":0,"n_cols":0,"rows_kept":0,"cut":false,"hidden":true,"merged":[]}

{"sheet":"modfrmReestrMR","index":45,"n_rows":0,"n_cols":0,"rows_kept":0,"cut":false,"hidden":true,"merged":[]}

{"sheet":"modServiceModule","index":46,"n_rows":0,"n_cols":0,"rows_kept":0,"cut":false,"hidden":true,"merged":[]}

{"sheet":"modfrmCheckUpdates","index":47,"n_rows":0,"n_cols":0,"rows_kept":0,"cut":false,"hidden":true,"merged":[]}

{"sheet":"REESTR_DS","index":48,"n_rows":0,"n_cols":0,"rows_kept":0,"cut":false,"hidden":true,"merged":[]}

{"sheet":"REESTR_CHS","index":49,"n_rows":0,"n_cols":0,"rows_kept":0,"cut":false,"hidden":true,"merged":[]}

{"sheet":"REESTR_LINK","index":50,"n_rows":3,"n_cols":3,"rows_kept":3,"cut":false,"hidden":true,"merged":[]}
["ID","LINK_NAME","REGION"]
[4189678,"https://portal.eias.ru/Portal/DownloadPage.aspx?type=12&guid=????????-????-????-????-????????????","ALL"]
[4190415,"https://eias.fstrf.ru/disclo/get_file?p_guid=????????-????-????-????-????????????","ALL"]